Cogmind - Beta 16 @@@ ROGUE MODE // 2025.12.05 @ 22:03:47 Player: GLC Result: Destroyed self via exploding Fusion Modulator Performance ------------- Evolutions (1) 500 Regions Visited (2) 400 Robots Destroyed (52) 260 Value Destroyed (1080) 1080 Prototype IDs (0) 0 Alien Tech Used (0) 0 Bonus (0) 0 TOTAL SCORE: 2240 Bonus ------- None Cogmind --------- Core Integrity 0/400 Matter 300/300 Energy 229/250 System Corruption 0% Temperature Cool (24) Movement Core (300) Ox5 Location -9/Materials Parts ------- > --- POWER (1) -------- Ion Engine > --- PROPULSION (2) --- (None) > --- UTILITY (4) ------ Small Storage Unit Signal Interpreter > --- WEAPON (2) ------- EM Shotgun Shotgun > --- INVENTORY (8) ---- Improved Targeting Computer Utility Shielding Light Armor Plating Hardened Light Armor Plating EM Shotgun Particle Gun Particle Gun Grenade Launcher Peak State ------------ > --- POWER ------------ Improved Ion Engine > --- PROPULSION ------- Wheel Wheel > --- UTILITY ---------- Improved Heat Sink Small Storage Unit Signal Interpreter Improved Targeting Computer > --- WEAPON ----------- Particle Gun Particle Gun > --- INVENTORY -------- Ion Engine Wheel Improved Targeting Computer Hardened Light Armor Plating EM Shotgun Shotgun Grenade Launcher [Rating: 16] Favorites ----------- Power Ion Engine Engine Ion Engine Propulsion Wheel Wheel Wheel Utility Small Storage Unit Device Seismic Detector Storage Small Storage Unit Processor Signal Interpreter Weapon Light Assault Rifle Energy Gun Small Laser Ballistic Gun Light Assault Rifle Launcher Grenade Launcher Build | -11 -10 -9 ------- Run | Yrd Mat Mat Slots Evolved 2 | . . 2 Power . | . . . Propulsion . | . . . Utility 2 | . . 2 Weapon . | . . . Parts Attached 29 | 7 6 16 Power 6 | 1 2 3 Engine 6 | 1 2 3 Core . | . . . Reactor . | . . . Propulsion 8 | 2 2 4 Treads . | . . . Leg . | . . . Wheel 8 | 2 2 4 Hover . | . . . Flight . | . . . Utility 7 | 2 . 5 Device 3 | 1 . 2 Storage 1 | 1 . . Processor 3 | . . 3 Hackware . | . . . Protection . | . . . Artifact . | . . . Weapon 8 | 2 2 4 Energy Gun 4 | . 1 3 Energy Cannon . | . . . Ballistic Gun 3 | 2 . 1 Ballistic Cannon . | . . . Launcher 1 | . 1 . Special Weapon . | . . . Impact Weapon . | . . . Slashing Weapon . | . . . Piercing Weapon . | . . . Special Melee Weapon . | . . . Unidentified Prototypes . | . . . Parts Lost 12 | . 3 9 Power 2 | . . 2 Propulsion 7 | . 2 5 Utility 2 | . . 2 Weapon 1 | . 1 . Highest Loss Streak 3 | . 3 2 To Critical Strikes . | . . . Average Backups 6 | 3 6 7 Power . | 1 1 . Propulsion 1 | 1 3 . Utility 2 | . 1 2 Weapon 2 | . . 2 Tool/Special . | . . . Unused Backups 14 | . 2 12 Power 3 | . 2 1 Propulsion . | . . . Utility 6 | . . 6 Weapon 5 | . . 5 Tool/Special . | . . . Average Slot Usage (%) 93 | . 99 90 Engine 11 | . 14 9 Wheel 19 | . 27 16 Device 12 | . 14 11 Storage 11 | . 14 11 Processor 13 | . . 19 Energy Gun 11 | . 5 14 Ballistic Gun 11 | . 21 7 Peak Build Rating 16 | 7 8 16 Average Rating 10 | 5 7 12 On Entrance 4 | . 7 7 Avg Prop Armor Cover (%) . | . . . Naked Turns . | . . . Heaviest Build 19 | 14 15 19 Greatest Support 20 | 20 20 20 Greatest Overweight (x) 5 | 1 4 5 Average Overweight (x) . | . . . Largest Inventory Capacity 8 | 8 8 8 Average Capacity 7 | 7 8 8 Most Carried 8 | 6 8 8 Average Carried 6 | 3 6 7 Final Capacity 8 | 8 8 8 Final Carried 8 | 6 7 8 Class Distribution -------------------- 54% | Scavenger-Mutant 45% | Mutant Dominant Class ---------------- Mutant | -10/Materials Scavenger-Mutant | -9/Materials Resources | -11 -10 -9 ----------- Run | Yrd Mat Mat Matter Collected 972 | 318 126 528 Remotely . | . . . Salvage Created 1609 | 193 324 1092 Parts 113 | 9 19 85 Haulers Intercepted 5 | . 1 4 Recyclers Shooed 3 | 1 . 2 Parts Field Recycled . | . . . Retrieved Matter . | . . . Parts Self-Destructed . | . . . Prevented . | . . . Parts Restored . | . . . Kills | -11 -10 -9 ------- Run | Yrd Mat Mat Combat Hostiles Destroyed 29 | . 7 22 Guns 22 | . 5 17 AOE 6 | . 2 4 Classes Destroyed 10 | 3 2 5 Worker 4 | 2 . 2 Builder 1 | . . 1 Tunneler 2 | 2 . . Hauler 5 | . 1 4 Recycler 4 | 1 . 3 Operator 3 | . . 3 Watcher 4 | . . 4 Swarmer 9 | . . 9 Grunt 15 | . 7 8 Sentry 5 | . . 5 Best Kill Streak 6 | 3 3 6 Combat Bots Only 4 | . 3 4 Max Kills in Single Turn 3 | 1 1 3 Gunslinging 1 | . . 1 Exploded 2 | . 1 2 Melee . | . . . Uniques/NPCs Destroyed . | . . . Combat | -11 -10 -9 -------- Run | Yrd Mat Mat Hostile Shots Fired 141 | . 45 96 Missed 37 | . 11 26 Hits 104 | . 34 70 Projectile 104 | . 34 70 Critical Strikes 2 | . . 2 Damage Taken 1511 | . 443 1068 Core 477 | . 67 410 Absorbed by Shields . | . . . Regen/Repaired (Parts) 20 | . 20 . Core Remaining (%) 86 | 100 73 . Volleys Fired 137 | 12 42 83 Largest 2 | 2 2 2 Hottest 130 | 40 70 130 Shots Fired 273 | 24 84 165 Gun 262 | 24 81 157 Cannon . | . . . Launcher 11 | . 3 8 Special . | . . . Kinetic 145 | 24 72 49 Thermal 114 | . 9 105 Explosive 11 | . 3 8 Electromagnetic 3 | . . 3 Robot Hit Streak 20 | 8 5 20 Robot Miss Streak 7 | 2 7 3 Penetration Max . | . . . Secondary Targets 3 | . 2 1 Max Gunslinging Chain 1 | . 1 1 Shots Hit Robots 167 | 14 40 113 Core Hits 91 | 8 18 65 Critical Kills . | . . . Critical Parts Destroyed . | . . . Critical Strikes 4 | . . 4 Burn 4 | . . 4 Melee Attacks . | . . . Impact . | . . . Slashing . | . . . Piercing . | . . . Sneak Attacks . | . . . Combat Hostiles . | . . . Follow-up Attacks . | . . . Damage Inflicted 2758 | 164 541 2053 Guns 2176 | 164 414 1598 Cannons . | . . . Explosions 582 | . 127 455 Melee . | . . . Ramming . | . . . Kinetic 1090 | 164 403 523 Thermal 1079 | . 11 1068 Explosive 533 | . 127 406 Electromagnetic 56 | . . 56 Impact . | . . . Slashing . | . . . Piercing . | . . . Highest Corruption . | . . . Average Corruption . | . . . Corruption Purged . | . . . Corruption Blocked . | . . . Overload Shots . | . . . Overflow Damage 70 | . . 70 Projectiles . | . . . Explosions 70 | . . 70 Melee . | . . . Knockbacks . | . . . Impact . | . . . Kinetic . | . . . Secondary . | . . . Self-Inflicted Damage 239 | . 35 204 Shots 5 | . 2 3 Rammed . | . . . Targets Rammed . | . . . Kicked . | . . . Crushed . | . . . Highest Temperature 108 | . 40 108 Average Temperature 22 | . 14 24 Received Heat Transfer 543 | . 225 318 Siege Activations . | . . . Martial Activations . | . . . Shielding Activations . | . . . Robots Disrupted . | . . . Combat Hostiles . | . . . Robots Corrupted . | . . . Combat Hostiles . | . . . Parts Fried . | . . . Impact Corruptions . | . . . Robots Melted 2 | . . 2 Combat Hostiles 1 | . . 1 Parts Melted 3 | . . 3 Heat Transferred 2834 | . 25 2809 Parts Sabotaged . | . . . Parts Stolen . | . . . Parts Stripped . | . . . Power Chain Reactions 1 | . . 1 Alert | -11 -10 -9 ------- Run | Yrd Mat Mat Maximum Alert Level . | . . . Low Security (%) 100 | 100 100 100 Level 1 . | . . . Level 2 . | . . . Level 3 . | . . . Level 4 . | . . . Level 5 . | . . . High Security . | . . . Max Security . | . . . Peak Influence 196 | 10 71 196 Initial 1 | . . 1 Average 86 | 1 30 121 Influence Increases 1092 | 25 236 831 Destroy 0b10 Robot/C 580 | . 140 440 Destroy 0b10 Robot/NC 115 | 25 5 85 Destroy Leader 138 | . 22 116 Successful Hack 4 | . 2 2 Disable Machine 90 | . 30 60 Destroy Structure 90 | . 22 68 Lose Combat Pursuer 75 | . 15 60 Influence Decreases 929 | 25 232 672 Entered New Map 3 | . . 3 Time Decay 656 | 25 202 429 Lost Part 120 | . 30 90 Purge Threat 150 | . . 150 Squads Dispatched 4 | . 1 3 Investigation 1 | . 1 . Extermination . | . . . Reinforcement 3 | . . 3 Assault . | . . . Garrison . | . . . Intercept . | . . . Searches Triggered . | . . . Construction Impeded . | . . . Haulers Reinforced . | . . . Active Scanning Responses . | . . . Cargo Convoy Interrupts . | . . . Stealth | -11 -10 -9 --------- Run | Yrd Mat Mat Distress Signals . | . . . Communications Jammed . | . . . Distress Signals . | . . . Times Spotted 51 | . 14 37 Peak Tracking Total 5 | . 5 5 Tactical Retreats 4 | . 1 3 Traps | -11 -10 -9 ------- Run | Yrd Mat Mat Traps Triggered 2 | . 1 1 Indirectly . | . . . Trap Hack Attempts . | . . . Triggered . | . . . Disarmed . | . . . Reprogrammed . | . . . Reused . | . . . Traps Extracted . | . . . Installed . | . . . Triggered . | . . . Machines | -11 -10 -9 ---------- Run | Yrd Mat Mat Machines Disabled 6 | . 2 4 Max in Single Turn 2 | . 1 2 Machines Repaired . | . . . Machines Dismantled . | . . . Machines Sabotaged . | . . . Overloaded Fab Kills . | . . . Hacking | -11 -10 -9 --------- Run | Yrd Mat Mat Machines Accessed 7 | . 3 4 Terminals 5 | . 2 3 Fabricators . | . . . Repair Stations 1 | . 1 . Recycling Units . | . . . Scanalyzers 1 | . . 1 Garrison Access . | . . . Total Hacks 18 | . 7 11 Successful 8 | . 2 6 Failed 9 | . 5 4 Catastrophic 2 | . 1 1 Database Lockouts 1 | . . 1 Manual 7 | . 2 5 Terminals 8 | . 2 6 Fabricators . | . . . Repair Stations 5 | . 5 . Recycling Units . | . . . Scanalyzers 5 | . . 5 Garrison Access . | . . . Terminal Hacks 3 | . . 3 Alert Level 2 | . . 2 Unreport Threat 1 | . . 1 Fabricator Hacks . | . . . Repair Station Hacks 2 | . 2 . Scan Component 1 | . 1 . Repair 1 | . 1 . Recycling Unit Hacks . | . . . Scanalyzer 3 | . . 3 Insert Component 1 | . . 1 Retrieve Study 2 | . . 2 Garrison Access Hacks . | . . . Unauthorized Hacks . | . . . Terminals . | . . . Fabricators . | . . . Repair Stations . | . . . Recycling Units . | . . . Scanalyzers . | . . . Garrison Access . | . . . Data Cores Recovered . | . . . Used . | . . . Hacking Detections 6 | . 3 3 Full Trace Events . | . . . Feedback Events . | . . . Feedback Blocked . | . . . Robot Schematics Acquired . | . . . Robots Built . | . . . Authchips . | . . . Time . | . . . Total Robot Build Rating . | . . . Part Schematics Acquired . | . . . Parts Built . | . . . Authchips . | . . . Time . | . . . Total Part Build Rating . | . . . Part Studies Acquired 2 | . . 2 Parts Repaired 1 | . 1 . Time 26 | . 26 . Parts Recycled . | . . . Recycled Matter . | . . . Retrieved Matter . | . . . Retrieved Components . | . . . Parts Scanalyzed . | . . . Part Schematics Acquired . | . . . Parts Damaged . | . . . Bothacking | -11 -10 -9 ------------ Run | Yrd Mat Mat Used RIF Installer . | . . . Robots Hacked . | . . . Non-combat . | . . . Combat . | . . . Robot Hacks Applied . | . . . Relay Couplers Released . | . . . Fabnet Peak Effective % . | . . . Robots Rewired . | . . . Allies Hacked . | . . . Hacks Repelled . | . . . Allies | -11 -10 -9 -------- Run | Yrd Mat Mat Total Allies . | . . . Largest Group . | . . . Highest-Rated Group . | . . . Highest-Rated Ally . | . . . Total Orders . | . . . Ally Attacks . | . . . Total Damage . | . . . Kills . | . . . Allies Corrupted . | . . . Allies Melted . | . . . Intel | -11 -10 -9 ------- Run | Yrd Mat Mat Active Infowar (turns) 1042 | 53 467 522 Sensors 522 | . . 522 Seismic 604 | 53 467 84 Robot Analysis Total . | . . . Derelict Logs Recovered . | . . . Drone Launches . | . . . Drone Recoveries . | . . . Exploration | -11 -10 -9 ------------- Run | Yrd Mat Mat Turns Passed 1676 | 143 467 1066 Spaces Moved 1154 | 102 351 701 Core 69 | 3 1 65 Treads . | . . . Legs . | . . . Wheels 1085 | 99 350 636 Hover . | . . . Flight . | . . . Fastest Speed 50 | 50 80 80 Average Speed 92 | 87 80 99 Slowest Speed 300 | 95 250 300 Overloaded Moves . | . . . Propulsion Burnouts . | . . . Robots Hopped . | . . . Potential Cave-ins . | . . . Cave-ins Triggered . | . . . Exploration Rate (%) 34 | 4 47 52 Regions Visited 2 Branch Regions . Pre-discovered Areas . | . . . Known Exits Taken . | . . . Unknown Exits Taken 2 | 1 1 . Scrap Searched . | . . . Spaces Dug . | . . . Terrain Destroyed 111 | . 23 88 Melee . | . . . Projectile . | . . . AOE 111 | . 23 88 Terrain Rammed . | . . . Walls Destroyed . | . . . Machines Disabled . | . . . Actions | -11 -10 -9 --------- Run | Yrd Mat Mat Total 1504 | 133 459 912 Wait 118 | . 48 70 Move 1152 | 101 350 701 Hop . | . . . Pick Up 40 | 13 7 20 Fast Attach 1 | . . 1 Attach 22 | 7 4 11 Detach 2 | . 1 1 Swap 16 | . 4 12 Drop 16 | . 3 13 Fire 137 | 12 42 83 Melee . | . . . Ram . | . . . Kick . | . . . Crush . | . . . Escape Stasis . | . . . Rewire . | . . . Trap . | . . . Miscellaneous . | . . . Route ------- -11/Scrapyard -10/Materials (discovered 2 exits: *Mat / [*Min]) -9/Materials (discovered 1 exit: *Min) History --------- Turn | Location | Event 20 | -11/Scrapyard | Discovered new exit (range 16) 144 | -11/Scrapyard | Entered Materials 303 | -10/Materials | Discovered new exit (range 11) 312 | -10/Materials | Build established: Mutant 350 | -10/Materials | Discovered new exit (range 12) 429 | -10/Materials | Lost 3 parts (2n1w) 505 | -10/Materials | Repaired Grenade Launcher 611 | -10/Materials | Entered another Materials area 611 | -9/Materials | Evolved 2 slots: Utility x2 689 | -9/Materials | Build established: Scavenger-Mutant 810 | -9/Materials | Central database locked down 870 | -9/Materials | Discovered new exit (range 15) 881 | -9/Materials | Identified exit to Mines 1329 | -9/Materials | Core integrity fell below 50% 1470 | -9/Materials | Core integrity fell below 20% 1621 | -9/Materials | Build established: Mutant 1677 | -9/Materials | Destroyed self via exploding Fusion Modulator Last Messages --------------- Imp. Targeting Computer severed. Particle Gun severed. K-01 Serf collects debris. Acquired Ion Engine. K-01 Serf collects debris. Acquired EM Shotgun. K-01 Serf collects debris. Acquired Particle Gun. K-01 Serf collects debris. Acquired Particle Gun. Acquired 30 matter. W-16 Scout destroyed. Acquired 2 matter. Acquired 6 matter. K-01 Serf collects debris. Chain reaction triggered in Lgt. Ion Engine. O-16 Technician destroyed. Fusion Modulator explodes. Imp. Heat Sink destroyed. Destroyed Imp. Heat Sink. Map ----- +----------------------------------------------------+ | ?????????????????????????????????????????????????? | | ?????????????????????????????????????????????????? | | ?????????????????????????????????????????????????? | | ?????????????????????????????????????????????????? | | ?????????????????????????????????????????????????? | | ?????????????????????????????????????????????????? | | ?????????????????????????????????????????????????? | | ?????????????????????????????????????????????????? | | #????????????????????????????????????????????????? | | ????????????????????????????????????????????????? | | ????????????????????????????????????????????????? | | ????????????????????????????????????????????????? | | ????????????????????????????????????????????????? | | ????????????????????????????????????????????????? | | ????????????????????????????????????????????????? | | #???????????????????????????????????????????????? | | #?????????????????????????????#?????????????????? | | #############?????????????????# ???????????????? | | =% #??????????######## ##????????????? | | ^ =^=^ +??????????# # ########?????? | | =*= ^! #??????????# T # #?????? | | / !!= #??????????# ; #???### | | // != ##???###+### ; #??# | | / * ##### # ; #####+##### " | | *[ # ##???# ! ## " | | % % = /@ #???# "S ## " | | #+#######!= # ##???# """ ## " | | #?# ##### # ; #???# "" ## " | | #?# ###???## ## ;##???# ## ! | | !! #?# #??????# ## ##????# [ """## " | | !! #?# #??????# ## #?????# """## " | | ! #?# #??????# ########?????# """## " | | #?# #??????# #????????????# ## " | | #?# #??????# #???????###########+#### " | | #?# #??????# #???????# # #??# | | #?# #??????+ +???????# # ####### | | ######### #??????# #???????# # ! [ | | % #??????# #???????# """ + = !| | | #??????# #???????# """"" # * ! | | #??????# #????????? """"" ####/#### | | #??????? ?????????? """"" #??# | | ############?????????????????????? """ #??# | | ???????????????????????????????????#######??# | | ????????????????????????????????????????????# | | ########????????????????????????????????????# | | #????????????????????????????????????# | | #????????????????????????????????????# | | #????????????????????????????????????# | | #????????????????????????????????????# | | #????????????????????????????????????# | +----------------------------------------------------+ Best States ------------- Heat Dissipation 42 Energy Generation 12 Energy Capacity 265 Matter Stores 300 Matter Capacity 300 Sight Range 16 Robot Scan Range 14 Terrain Scan Density 10 Evasion (%) 44 Targeting Accuracy 6 Item Schematics ----------------- None Robot Schematics ------------------ None Fabricated ------------ Nothing Repaired ---------- Grenade Launcher | 66% | -10/Materials Studied --------- Shotgun | -9/Materials | Hacked Mni. Grenade Launcher | -9/Materials | Hacked Alien Tech Used ----------------- None Achievements -------------- None Challenges ------------ None Game ------ Seed SegregatorSuperquantumDevice Manual? 0 Play Time 00:23:30 Cumulative 15.0 hours Start 2025.12.05 @ 21:42:56 End 2025.12.05 @ 22:03:47 Sessions 1 Manual Loads 0 Difficulty Rogue Special Mode None Game No. 31 Rogue 31 Adventurer 0 Explorer 0 Win Type - Total 0 Types 0/0/0/0/0/0/0/0/0/0 Lore% 12 Gallery% 13 Achievement% 14 Wizard Run 0 Options --------- Layout 1 ASCII 0 Keyboard 0 Movement Mouse Keybinds 0 Fullscreen 1 Font 24/Smallcaps Map View 50x35 Zoom Use 0% Tactical HUD 0 Map Filters NONE Filters NONE Steam 1 RUN: 924f783e-f18e-48a3-8ef5-e2c8b9d29e65